[Event "FISU WUMSCC Men 2024"]
[Site "Entebbe"]
[Date "2024.06.26"]
[Round "3.1"]
[White "Alshnaiber, Yazeed"]
[Black "Szpar, Milosz"]
[Result "0-1"]
[ECO "B58"]
[WhiteElo "1831"]
[BlackElo "2497"]
[Annotator "TA"]
[PlyCount "110"]
[EventDate "2024.06.24"]
[EventType "swiss"]
[EventCountry "UGA"]
[SourceTitle "playchess.com"]
[Source "ChessBase"]
[SourceQuality "1"]
[TimeControl "5400+30"]

{[%evp 17,110,0,0,0,6,0,16,0,31,-14,-9,0,0,-34,0,-91,-97,-131,-139,-132,-103,-116,-102,-208,-205,-201,-177,-210,-210,-196,-193,-195,-204,-228,-199,-230,-233,-235,-231,-277,-251,-283,-289,-354,-325,-338,-337,-462,-459,-445,-296,-594,-507,-637,-567,-2813,-551,-826,-806,-1075,-1030,-2195,-518,-592,-609,-645,-652,-671,-652,-1282,-646,-618,-651,-591,-521,-737,-721,-751,-777,-784,-772,-1174,-1150,-1576,-1745,-6179,-1808,-29940,-6342,-29979,-29980,-29980,-29981,-29980,-29981]} 1. e4 c5 {[%emt 0:06:51]} 2. Nf3 {[%emt 0:01:39]} d6 {[%emt 0:01:03]} 3. d4 {[%emt 0:01:23]} cxd4 {[%emt 0:00:27]} 4. Nxd4 {[%emt 0:00:08]} Nf6 {[%emt 0:00:04]} 5. Nc3 {[%emt 0:00:07]} Nc6 {[%emt 0:00:11]} 6. Be2 {[%emt 0:06:15]} e5 {[%emt 0:01:20]} 7. Nf3 {[%emt 0:01:15]} h6 {[%emt 0:00:19]} 8. O-O {[%emt 0:00:24]} Be7 {[%emt 0:00:06]} 9. Re1 {[%emt 0:00:07]} O-O {[%emt 0:00:10]} 10. Bc4 {[%emt 0:00:18]} Na5 {[%emt 0:05:15]} 11. Bf1 {[%emt 0:00:18]} Qc7 {[%emt 0:02:34]} 12. h3 {[%emt 0:08:24] The position is equal.} Bd7 {[%emt 0:10:38]} 13. Nd5 {[%emt 0:10:48]} Nxd5 {[%emt 0:00:07]} 14. exd5 {[%emt 0:00:04]} b5 {[%emt 0:10:15]} 15. c3 Rac8 {[%emt 0:07:27]} 16. Bd2 {[%emt 0:32:29]} (16. Nd4 $11) 16... Nc4 $17 {[%emt 0:04:01]} 17. Rb1 {[%emt 0:19:56]} Bf5 {[%emt 0:01:20]} 18. Ra1 {[%emt 0:03:51]} Nxb2 {[%emt 0:05:23] Black is more active.} 19. Qb3 {[%emt 0:00:10]} Nc4 {[%emt 0:00:22]} 20. Qxb5 {[%emt 0:05:43] [#]} (20. a4 $17) 20... Na3 $1 $19 {[%emt 0:01:50]} 21. Qa4 {[%emt 0:03:13]} Nc2 $36 {[%emt 0:00:12][%cal Oe7f6][%mdl 2048] Black is on the roll.} 22. Rac1 {[%emt 0:00:07]} Nxe1 {[%emt 0:00:10]} 23. Rxe1 {[%emt 0:00:05]} Rb8 {[%emt 0:03:13]} 24. c4 Rb7 {[%emt 0:05:06]} 25. a3 {[%emt 0:02:22]} Qd7 {[%emt 0:05:48]} 26. Qa6 {[%emt 0:00:41]} Rc8 {[%emt 0:02:23]} 27. Be3 {[%emt 0:01:04][%cal Oc4c5]} Bf6 {[%emt 0:04:29]} 28. Rc1 {[%emt 0:02:18]} Rcb8 {[%emt 0:01:38]} 29. Kh2 {[%emt 0:01:11]} Bd8 {[%emt 0:03:31]} 30. Rd1 {[%emt 0:00:35]} Rb1 {[%emt 0:03:41]} 31. Rxb1 {[%emt 0:00:07]} Rxb1 {[%emt 0:00:04]} 32. Be2 {[%emt 0:00:06]} Bb6 {[%emt 0:02:27]} 33. c5 {[%emt 0:00:47]} dxc5 {[%emt 0:00:57]} 34. Nxe5 $2 {[%emt 0:00:18]} (34. Qc4 {was called for.}) 34... Qxd5 {[%emt 0:02:41]} 35. Bf4 {[%emt 0:00:15]} Qd4 {[%emt 0:00:48]} 36. Bg3 {[%emt 0:00:23]} Bc7 {[%emt 0:01:58]} (36... Qa1 $142 {[%csl Ga1][%cal Rb1h1]} 37. Bf4 Rh1+ 38. Kg3 Rxh3+ 39. gxh3 Qg1+ 40. Kf3 Qh1+ (40... Bxh3 41. Bg3 $15) 41. Ke3 Qe4+ (41... Bxh3 42. Kd2 $11) 42. Kd2 Qxf4+ 43. Kd1 Qxe5) 37. Nf3 {[%emt 0:01:26]} Bxg3+ {[%emt 0:00:48]} (37... Qxf2 38. Bxc7 Rb2 39. Ng1 $11) 38. fxg3 {[%emt 0:00:15]} Qe3 {[%emt 0:02:01]} 39. Bc4 {[%emt 0:01:28]} Qe7 {[%emt 0:00:24]} (39... Qc1 $142 {[%csl Gb1][%cal Rc1h1]} 40. Bf1 Qxf1 41. Qxf1 Rxf1) 40. Qc6 {[%emt 0:00:00]} Rb8 {[%emt 0:00:48]} 41. Qd5 {[%emt 0:00:28]} Be4 {[%emt 0:00:52]} 42. Qd1 {[%emt 0:00:25]} Rb2 {[%emt 0:01:01] White must now prevent ...Qf6.} 43. Nd2 {[%emt 0:00:33]} Ba8 {[%emt 0:02:53]} 44. Nf3 {[%emt 0:00:22]} Bxf3 {[%emt 0:00:51]} 45. Qxf3 {[%emt 0:00:04][%mdl 4096] Endgame. KQR-KQB} Rb8 {[%emt 0:00:11] Against Qa8} 46. Bd3 {[%emt 0:00:29]} Rd8 {[%emt 0:00:15]} 47. Qf5 {[%emt 0:00:30]} g6 {[%emt 0:00:14]} 48. Qf3 {[%emt 0:00:03]} Kg7 {[%emt 0:00:13]} 49. h4 {[%emt 0:00:17]} h5 {[%emt 0:00:07] Threatens to win with ...Rd4.} 50. Bc4 {[%emt 0:00:37]} Rd4 {[%emt 0:00:12]} 51. Qb3 {[%emt 0:00:18]} Qc7 {[%emt 0:00:14]} (51... Qe5 $142 52. Kg1 Qe1+ 53. Bf1 c4) 52. Kh3 {[%emt 0:00:37]} Qb6 {[%emt 0:00:33][%cal Od4c4] ( -> ...Rxc4!)} 53. Qc3 {[%emt 0:00:37]} Qf6 {[%emt 0:00:05] Black mates.} 54. Qb3 {[%emt 0:00:11] [#]} Rxc4 $1 {[%emt 0:00:13]} 55. Qxc4 {[%emt 0:00:14]} Qe6+ {[%emt 0:00:04] Weighted Error Value: White=0.92/Black=0.54.  Mistake:       	White=3     	---        Inaccurate:     	White=7     	Black=3      OK:         	White=7     	Black=13     Best:        	---       	Black=2      Strong:       	---       	Black=1} 0-1

[Event "FISU WUMSCC Men 2024"]
[Site "Entebbe"]
[Date "2024.06.26"]
[Round "3.2"]
[White "Gatineau, Yovann"]
[Black "Defromont, Benjamin"]
[Result "1/2-1/2"]
[ECO "E17"]
[WhiteElo "2414"]
[BlackElo "2380"]
[Annotator "RC"]
[PlyCount "22"]
[EventDate "2024.06.24"]
[EventType "swiss"]
[EventCountry "UGA"]
[SourceTitle "playchess.com"]
[Source "ChessBase"]
[SourceQuality "1"]
[TimeControl "5400+30"]

1. d4 {[%emt 0:02:24]} Nf6 {[%emt 1:31:00]} 2. c4 {[%emt 0:02:00]} e6 {[%emt 0:00:00]} 3. Nf3 {[%emt 0:00:07]} b6 {[%emt 0:00:00]} 4. g3 {[%emt 0:01:02]} Bb7 {[%emt 0:00:00]} 5. Bg2 {[%emt 0:00:06]} Be7 {[%emt 0:00:00]} 6. O-O {[%emt 0:02:03]} O-O {[%emt 0:00:00]} 7. Re1 {[%emt 0:01:51]} d5 {[%emt 0:00:00]} 8. cxd5 {[%emt 0:06:17]} exd5 {[%emt 0:00:00]} 9. Nc3 {[%emt 0:00:10]} Nbd7 {[%emt 0:00:00]} 10. Bf4 {[%emt 0:02:02]} c5 {[%emt 0:00:00]} 11. Rc1 {[%emt 0:03:22]} Ne4 {[%emt 0:00:00]} 1/2-1/2

[Event "FISU WUMSCC Men 2024"]
[Site "Entebbe"]
[Date "2024.06.26"]
[Round "3.3"]
[White "Mladek, Richard"]
[Black "Horak, Martin"]
[Result "0-1"]
[ECO "D31"]
[WhiteElo "2385"]
[BlackElo "2333"]
[Annotator "RC"]
[PlyCount "62"]
[EventDate "2024.06.24"]
[EventType "swiss"]
[EventCountry "UGA"]
[SourceTitle "playchess.com"]
[Source "ChessBase"]
[SourceQuality "1"]
[TimeControl "5400+30"]

1. d4 {[%emt 0:00:02]} d5 {[%emt 0:00:22]} 2. c4 {[%emt 0:00:11]} e6 {[%emt 0:00:06]} 3. Nc3 {[%emt 0:00:09]} Be7 {[%emt 0:00:59]} 4. cxd5 {[%emt 0:00:08]} exd5 {[%emt 0:00:04]} 5. Bf4 {[%emt 0:00:23]} c6 {[%emt 0:00:29]} 6. e3 {[%emt 0:00:06]} Bf5 {[%emt 0:00:38]} 7. Nge2 {[%emt 0:00:07]} Nd7 {[%emt 0:00:48]} 8. Ng3 {[%emt 0:00:28]} Bg6 {[%emt 0:00:22]} 9. h4 {[%emt 0:00:24]} Bxh4 {[%emt 0:03:45]} 10. Qb3 {[%emt 0:01:10]} Bxg3 {[%emt 0:01:25]} 11. Bxg3 {[%emt 0:01:27]} Qb6 {[%emt 0:00:17]} 12. Qa3 {[%emt 0:01:42]} Ne7 {[%emt 0:01:31]} 13. Bd6 {[%emt 0:20:10]} Qd8 14. e4 {[%emt 0:43:18]} dxe4 {[%emt 0:28:00]} 15. d5 {[%emt 0:01:02]} Nc8 {[%emt 0:11:36]} 16. dxc6 {[%emt 0:01:22]} bxc6 {[%emt 0:02:04]} 17. Rd1 {[%emt 0:01:01]} Qf6 {[%emt 0:07:49]} 18. Ba6 {[%emt 0:02:56]} Nxd6 {[%emt 0:09:09]} 19. Rxd6 {[%emt 0:00:02]} Qe7 {[%emt 0:06:14]} 20. Bb7 {[%emt 0:00:35]} Rd8 {[%emt 0:00:19]} 21. Bxc6 {[%emt 0:00:51]} O-O {[%emt 0:00:41]} 22. Nd5 {[%emt 0:02:59]} Qg5 {[%emt 0:00:26]} 23. Qe3 {[%emt 0:10:44]} Qe5 {[%emt 0:03:33]} 24. Qg3 {[%emt 0:01:57]} Qxg3 {[%emt 0:04:01]} 25. fxg3 {[%emt 0:00:10]} Ne5 {[%emt 0:01:49]} 26. Ne7+ {[%emt 0:00:45]} Kh8 {[%emt 0:00:05]} 27. Nxg6+ {[%emt 0:00:35]} Nxg6 {[%emt 0:17:28]} 28. Rxd8 {[%emt 0:00:23]} Rxd8 {[%emt 0:00:00]} 29. Rh5 {[%emt 0:05:01]} f5 {[%emt 0:01:00]} 30. g4 {[%emt 0:01:19]} Ne5 {[%emt 0:00:00]} 31. Bxe4 {[%emt 0:00:05]} g6 {[%emt 0:00:00]} 0-1

[Event "FISU WUMSCC Men 2024"]
[Site "Entebbe"]
[Date "2024.06.26"]
[Round "3.4"]
[White "Turcan, Richard"]
[Black "Jakab, Bela"]
[Result "1/2-1/2"]
[ECO "C07"]
[WhiteElo "2374"]
[BlackElo "2390"]
[Annotator "RC"]
[PlyCount "141"]
[EventDate "2024.06.24"]
[EventType "swiss"]
[EventCountry "UGA"]
[SourceTitle "playchess.com"]
[Source "ChessBase"]
[SourceQuality "1"]
[TimeControl "5400+30"]

1. e4 {[%emt 0:01:40]} e6 {[%emt 0:00:15]} 2. d4 {[%emt 0:00:06]} d5 {[%emt 0:00:06]} 3. Nd2 {[%emt 0:00:07]} c5 {[%emt 0:00:07]} 4. exd5 {[%emt 0:00:04]} Qxd5 {[%emt 0:00:06]} 5. Ngf3 {[%emt 0:00:07]} cxd4 {[%emt 0:00:04]} 6. Bc4 {[%emt 0:00:09]} Qd7 {[%emt 0:00:16]} 7. O-O {[%emt 0:00:24]} Nc6 {[%emt 0:00:12]} 8. Nb3 {[%emt 0:01:23]} a6 {[%emt 0:00:07]} 9. a4 {[%emt 0:01:04]} Nf6 {[%emt 0:02:28]} 10. Qe2 {[%emt 0:00:55]} Bd6 {[%emt 0:05:55]} 11. Rd1 {[%emt 0:00:12]} e5 {[%emt 0:12:04]} 12. Nbxd4 {[%emt 0:01:44]} Nxd4 {[%emt 0:00:07]} 13. Rxd4 {[%emt 0:00:04]} Qe7 {[%emt 0:00:28]} 14. Rxd6 {[%emt 0:00:58]} Qxd6 {[%emt 0:00:03]} 15. b3 {[%emt 0:00:07]} Be6 {[%emt 0:05:59]} 16. Ba3 {[%emt 0:00:16]} Qc7 {[%emt 0:00:15]} 17. Nxe5 {[%emt 0:05:33]} O-O-O {[%emt 0:03:17]} 18. Bxe6+ {[%emt 0:00:20]} fxe6 {[%emt 0:00:01]} 19. Nc4 {[%emt 0:07:13]} Qc6 {[%emt 0:06:09]} 20. Bb2 {[%emt 0:06:21]} Rd5 {[%emt 0:09:22]} 21. Ne5 Qe8 {[%emt 0:10:56]} 22. c4 {[%emt 0:06:36]} Rd8 {[%emt 0:00:07]} 23. b4 {[%emt 0:07:54]} Qh5 {[%emt 0:05:33]} 24. Qxh5 {[%emt 0:08:18]} Nxh5 25. Nf7 {[%emt 0:00:11]} Rd2 {[%emt 0:04:26]} 26. Bc3 {[%emt 0:01:19]} Rd3 {[%emt 0:02:27]} 27. Nxh8 {[%emt 0:01:39]} Rxc3 {[%emt 0:00:06]} 28. Nf7 {[%emt 0:00:10]} Kc7 {[%emt 0:04:33]} 29. Ne5 {[%emt 0:04:26]} Kd6 {[%emt 0:01:39]} 30. Re1 {[%emt 0:02:26]} Nf4 {[%emt 0:01:54]} 31. g3 {[%emt 0:08:44]} Nd3 {[%emt 0:01:02]} 32. Nxd3 {[%emt 0:00:37]} Rxd3 {[%emt 0:00:02]} 33. Re4 {[%emt 0:01:26]} Ra3 {[%emt 0:03:33]} 34. Rd4+ {[%emt 0:06:21]} Ke7 {[%emt 0:02:56]} 35. a5 {[%emt 0:02:50]} Rb3 {[%emt 0:00:09]} 36. c5 {[%emt 0:00:06]} e5 {[%emt 0:01:08]} 37. Re4 {[%emt 0:01:30]} Kf6 {[%emt 0:02:01]} 38. c6 {[%emt 0:01:00]} bxc6 {[%emt 0:00:10]} 39. Rc4 {[%emt 0:00:05]} Kf5 {[%emt 0:01:44]} 40. Rxc6 {[%emt 0:02:59]} Rxb4 {[%emt 0:00:06]} 41. Rxa6 {[%emt 0:00:12]} Ra4 {[%emt 0:00:15]} 42. Kg2 {[%emt 0:01:11]} e4 {[%emt 0:01:34]} 43. Ra7 {[%emt 0:01:19]} Kf6 {[%emt 0:00:47]} 44. Ra8 {[%emt 0:03:31]} Ra1 {[%emt 0:02:16]} 45. a6 {[%emt 0:00:51]} Kg6 {[%emt 0:01:01]} 46. a7 {[%emt 0:01:33]} h6 {[%emt 0:05:47]} 47. Kh3 {[%emt 0:04:49]} Kg5 {[%emt 0:00:24]} 48. Kg2 {[%emt 0:00:22]} Kg6 {[%emt 0:00:01]} 49. h3 {[%emt 0:00:48]} Kg5 {[%emt 0:01:02]} 50. h4+ {[%emt 0:03:54]} Kg4 {[%emt 0:00:53]} 51. Re8 {[%emt 0:01:09]} Rxa7 {[%emt 0:00:07]} 52. Rxe4+ {[%emt 0:00:04]} Kf5 {[%emt 0:00:13]} 53. Re8 {[%emt 0:01:54]} Kg6 {[%emt 0:00:27]} 54. Rh8 {[%emt 0:00:05]} Ra4 {[%emt 0:00:33]} 55. f3 {[%emt 0:00:39]} Ra2+ {[%emt 0:00:20]} 56. Kh3 {[%emt 0:00:08]} Ra3 {[%emt 0:00:47]} 57. Kg4 {[%emt 0:00:03]} Ra4+ {[%emt 0:00:25]} 58. f4 {[%emt 0:00:04]} Ra5 {[%emt 0:00:11]} 59. Rb8 {[%emt 0:00:32]} h5+ {[%emt 0:01:11]} 60. Kh3 {[%emt 0:00:12]} Kh6 {[%emt 0:00:33]} 61. Rb6+ {[%emt 0:00:26]} g6 {[%emt 0:00:11]} 62. Re6 {[%emt 0:01:01]} Kg7 {[%emt 0:00:40]} 63. Kg2 {[%emt 0:00:08]} Kf7 {[%emt 0:00:18]} 64. Re3 {[%emt 0:00:05]} Kf6 {[%emt 0:00:18]} 65. Kf3 {[%emt 0:00:11]} Kf5 {[%emt 0:01:10]} 66. Re5+ {[%emt 0:00:26]} Rxe5 {[%emt 0:00:05]} 67. fxe5 {[%emt 0:00:03]} Kxe5 {[%emt 0:00:04]} 68. g4 {[%emt 0:00:06]} hxg4+ {[%emt 0:00:05]} 69. Kxg4 {[%emt 0:00:06]} Kf6 {[%emt 0:00:06]} 70. h5 {[%emt 0:00:06]} gxh5+ {[%emt 0:00:03]} 71. Kxh5 {[%emt 0:00:32]} 1/2-1/2

[Event "FISU WUMSCC Men 2024"]
[Site "Entebbe"]
[Date "2024.06.26"]
[Round "3.5"]
[White "Walter, Szymon"]
[Black "Alrehaili, Ahmed Abdullah S"]
[Result "1-0"]
[ECO "C11"]
[WhiteElo "2313"]
[BlackElo "2134"]
[Annotator "RC"]
[PlyCount "77"]
[EventDate "2024.06.24"]
[EventType "swiss"]
[EventCountry "UGA"]
[SourceTitle "playchess.com"]
[Source "ChessBase"]
[SourceQuality "1"]
[TimeControl "5400+30"]

1. e4 {[%emt 0:00:11]} e6 {[%emt 0:00:48]} 2. d4 {[%emt 0:00:21]} d5 {[%emt 0:00:07]} 3. Nc3 {[%emt 0:00:19]} Nf6 {[%emt 0:00:10]} 4. e5 {[%emt 0:01:04]} Nfd7 {[%emt 0:00:04]} 5. f4 {[%emt 0:00:18]} c5 {[%emt 0:00:10]} 6. Nf3 {[%emt 0:00:15]} Nc6 {[%emt 0:00:11]} 7. Be3 {[%emt 0:00:30]} cxd4 {[%emt 0:01:43]} 8. Nxd4 {[%emt 0:00:09]} Bc5 {[%emt 0:00:16]} 9. Qd2 {[%emt 0:03:04]} O-O {[%emt 0:01:05]} 10. O-O-O {[%emt 0:00:45]} Nxd4 {[%emt 0:00:24]} 11. Bxd4 {[%emt 0:00:07]} a6 {[%emt 0:00:08]} 12. Qe3 {[%emt 0:04:13]} Qc7 {[%emt 0:01:06]} 13. Bd3 {[%emt 0:03:49]} Bxd4 {[%emt 0:03:55]} 14. Qxd4 {[%emt 0:00:15]} b5 {[%emt 0:01:01]} 15. Rhe1 {[%emt 0:01:23]} Qc5 {[%emt 0:01:10]} 16. Ne2 {[%emt 0:01:29]} b4 {[%emt 0:02:43]} 17. f5 {[%emt 0:02:44]} Qxd4 {[%emt 0:05:55]} 18. Nxd4 {[%emt 0:00:06]} Nc5 {[%emt 0:00:18]} 19. g4 {[%emt 0:14:03]} a5 {[%emt 0:04:58]} 20. f6 {[%emt 0:02:16]} g6 {[%emt 0:10:37]} 21. h4 {[%emt 0:03:04]} h6 22. Nc6 {[%emt 0:09:01]} Re8 {[%emt 0:16:26]} 23. Ne7+ {[%emt 0:07:18]} Rxe7 {[%emt 0:00:56]} 24. fxe7 {[%emt 0:00:06]} Bd7 {[%emt 0:00:07]} 25. Rf1 {[%emt 0:03:50]} Re8 {[%emt 0:03:22]} 26. Kd2 {[%emt 0:06:08]} Rxe7 {[%emt 0:01:39]} 27. Ke3 {[%emt 0:00:42]} Ba4 {[%emt 0:03:15]} 28. b3 {[%emt 0:00:52]} Be8 {[%emt 0:00:48]} 29. a3 {[%emt 0:13:48]} Rc7 {[%emt 0:03:26]} 30. axb4 {[%emt 0:01:02]} axb4 {[%emt 0:00:06]} 31. Ra1 {[%emt 0:00:16]} Bc6 {[%emt 0:06:23]} 32. Kd4 {[%emt 0:02:12]} Nd7 {[%emt 0:00:35]} 33. Ra5 {[%emt 0:06:37]} f6 {[%emt 0:06:12]} 34. Rxf6 {[%emt 0:06:28]} Nxf6 {[%emt 0:00:28]} 35. exf6 {[%emt 0:00:04]} Kf7 {[%emt 0:04:48]} 36. g5 {[%emt 0:00:49]} hxg5 {[%emt 0:02:24]} 37. hxg5 {[%emt 0:00:03]} Bd7 {[%emt 0:01:21]} 38. Ra8 {[%emt 0:01:28]} Bc8 {[%emt 0:00:17]} 39. Ra1 {[%emt 0:01:16]} 1-0

[Event "FISU WUMSCC Men 2024"]
[Site "Entebbe"]
[Date "2024.06.26"]
[Round "3.6"]
[White "Janik, Igor"]
[Black "Kato, Richard"]
[Result "1-0"]
[ECO "C00"]
[WhiteElo "2511"]
[BlackElo "1908"]
[Annotator "TA"]
[PlyCount "65"]
[EventDate "2024.06.24"]
[EventType "swiss"]
[EventCountry "UGA"]
[SourceTitle "playchess.com"]
[Source "ChessBase"]
[SourceQuality "1"]
[TimeControl "5400+30"]

{[%evp 9,65,3,8,8,37,15,8,8,10,-17,18,20,25,16,27,16,58,8,41,55,62,43,53,29,168,88,150,143,149,116,164,165,166,144,196,170,231,262,465,476,449,443,495,506,728,699,645,458,639,606,594,606,618,586,420,270,1059,1031]} 1. e4 {[%emt 0:00:02]} e6 {[%emt 0:01:41]} 2. Qe2 {[%emt 0:00:09]} c6 {[%emt 0:00:42]} 3. Nf3 {[%emt 0:01:41]} d5 {[%emt 0:00:11]} 4. d3 {[%emt 0:00:02]} Nf6 {[%emt 0:03:26]} 5. g3 {[%emt 0:00:07]} Be7 {[%emt 0:01:55]} 6. Bg2 {[%emt 0:00:04]} b6 {[%emt 0:00:52]} 7. e5 {[%emt 0:00:43]} Nfd7 {[%emt 0:00:35]} 8. h4 {[%emt 0:00:05] The position is equal.} h6 {[%emt 0:02:16]} 9. Bf4 {[%emt 0:00:07]} c5 {[%emt 0:10:31]} 10. c4 {[%emt 0:00:48]} Bb7 {[%emt 0:00:07]} 11. Nc3 {[%emt 0:00:04] [#] And now cxd5 would win.} d4 {[%emt 0:02:35]} 12. Ne4 {[%emt 0:01:35][%cal Of3d4]} Na6 {[%emt 0:07:06]} 13. h5 {[%emt 0:01:29]} (13. O-O $14) 13... Bxe4 {[%emt 0:07:33]} 14. Qxe4 {[%emt 0:01:20][%cal Of3d4] Strongly threatening Nxd4!} Rc8 {[%emt 0:00:01] Black is weak on the light squares} 15. O-O {[%emt 0:00:12]} Nab8 {[%emt 0:02:02]} 16. Rae1 {[%emt 0:01:43]} Nf8 {[%emt 0:00:44] White stays focused until the end.} (16... O-O $11) 17. Nh2 {[%emt 0:00:48]} (17. Bd2 $18) 17... Nh7 {[%emt 0:09:41]} (17... Bg5 $142) 18. Bd2 $16 {[%emt 0:00:18]} O-O {[%emt 0:01:11]} 19. f4 {[%emt 0:00:08] White has more active pieces. The black rooks are passive.} Rc7 {[%emt 0:10:30]} (19... Na6 $16 {was necessary.} 20. Bh3 Rb8) 20. Qe2 $18 {[%emt 0:01:22]} Nc6 {[%emt 0:04:01]} 21. Be4 Re8 {[%emt 0:02:53]} (21... Nb4 $16 {might work better.} 22. Qg4 Nc2) 22. Qg2 {[%emt 0:00:30]} Qc8 {[%emt 0:02:39]} (22... Nb4 {keeps fighting.} 23. g4 b5 24. Bxb4 (24. cxb5 Nc2 $18) 24... cxb4 25. cxb5 Kh8) 23. g4 {[%emt 0:00:21]} f5 $2 {[%emt 0:02:37] [#]} (23... Nb4 24. g5 Kh8) 24. exf6 {[%emt 0:01:06]} Nxf6 {[%emt 0:01:54][%cal Bh7f6,Bf6d7,Bd7f8][%mdl 32]} 25. Bg6 {[%emt 0:00:20]} Rf8 {[%emt 0:01:23]} 26. g5 {[%emt 0:00:21]} hxg5 {[%emt 0:00:48]} 27. fxg5 {[%emt 0:00:08]} Nd7 {[%emt 0:03:12]} 28. Be4 {[%emt 0:00:24]} Nce5 {[%emt 0:01:00]} 29. Qh3 {[%emt 0:00:42]} Rxf1+ {[%emt 0:00:31]} 30. Rxf1 {[%emt 0:00:03]} Nf8 {[%emt 0:00:15]} 31. Bf4 {[%emt 0:00:08]} Nf7 {[%emt 0:02:53]} 32. Bxc7 {[%emt 0:00:44] A strong pair of Bishops.} Nxg5 $2 {[%emt 0:00:29]} (32... Qxc7 33. g6 Ng5) 33. Qg3 {[%emt 0:00:11] Weighted Error Value: White=0.33/Black=0.42.  Mistake:       	White=2     	Black=7      Inaccurate:     	White=1     	Black=5      OK:         	White=10    	Black=7      Best:        	White=2     	---} 1-0

[Event "FISU WUMSCC Men 2024"]
[Site "Entebbe"]
[Date "2024.06.26"]
[Round "3.7"]
[White "Alfaitori, Abdallah"]
[Black "Szustakowski, Antoni"]
[Result "0-1"]
[ECO "A46"]
[WhiteElo "1947"]
[BlackElo "2362"]
[Annotator "RC"]
[PlyCount "82"]
[EventDate "2024.06.24"]
[EventType "swiss"]
[EventCountry "UGA"]
[SourceTitle "playchess.com"]
[Source "ChessBase"]
[SourceQuality "1"]
[TimeControl "5400+30"]

1. d4 {[%emt 0:05:35]} Nf6 {[%emt 0:00:05]} 2. Nf3 {[%emt 0:00:17]} e6 {[%emt 0:01:44]} 3. g3 {[%emt 0:00:42]} b5 {[%emt 0:04:53]} 4. Bg2 {[%emt 0:02:04]} Bb7 {[%emt 0:00:45]} 5. O-O {[%emt 0:00:40]} c5 {[%emt 0:02:03]} 6. c3 {[%emt 0:05:55]} Be7 {[%emt 0:02:49]} 7. Ne1 {[%emt 0:08:20]} Bxg2 {[%emt 0:01:35]} 8. Kxg2 {[%emt 0:00:23]} Nc6 {[%emt 0:08:25]} 9. Bg5 {[%emt 0:01:57]} d5 {[%emt 0:28:28]} 10. Bxf6 {[%emt 0:01:23]} Bxf6 11. dxc5 {[%emt 0:08:22]} O-O {[%emt 0:00:12]} 12. e4 {[%emt 0:11:14]} dxe4 {[%emt 0:02:05]} 13. Qe2 {[%emt 0:02:00]} Qd5 {[%emt 0:00:58]} 14. Kg1 {[%emt 0:00:54]} Rfd8 {[%emt 0:03:08]} 15. a4 {[%emt 0:13:44]} b4 {[%emt 0:02:13]} 16. cxb4 {[%emt 0:02:17]} Nxb4 {[%emt 0:00:07]} 17. Nc3 {[%emt 0:00:33]} Bxc3 {[%emt 0:00:42]} 18. bxc3 {[%emt 0:00:03]} Nd3 {[%emt 0:00:18]} 19. Nxd3 {[%emt 0:01:28]} exd3 {[%emt 0:00:03]} 20. Qe3 {[%emt 0:00:58]} Rac8 {[%emt 0:00:21]} 21. Rfd1 {[%emt 0:02:04]} e5 {[%emt 0:03:01]} 22. f3 {[%emt 0:10:22]} f5 {[%emt 0:04:20]} 23. Kg2 {[%emt 0:11:23]} e4 {[%emt 0:01:48]} 24. Rd2 {[%emt 0:05:02]} Qxc5 {[%emt 0:03:00]} 25. Qxc5 {[%emt 0:01:56]} Rxc5 {[%emt 0:29:57]} 26. fxe4 {[%emt 0:00:19]} fxe4 {[%emt 0:00:00]} 27. Re1 {[%emt 0:01:01]} Rc4 {[%emt 0:00:00]} 28. a5 {[%emt 0:00:29]} Rd5 {[%emt 0:00:00]} 29. Kf2 {[%emt 0:02:23]} Rf5+ {[%emt 0:00:00]} 30. Kg2 {[%emt 0:00:13]} Rxa5 {[%emt 0:00:00]} 31. Rb2 {[%emt 0:01:00]} h6 {[%emt 0:00:00]} 32. Rb8+ {[%emt 0:00:27]} Kh7 {[%emt 0:00:00]} 33. Rf1 {[%emt 0:00:56]} d2 {[%emt 0:00:00]} 34. Rd8 {[%emt 0:00:10]} e3 {[%emt 0:00:00]} 35. Rff8 {[%emt 0:00:10]} Ra1 {[%emt 0:00:00]} 36. Rh8+ {[%emt 0:00:30]} Kg6 {[%emt 0:00:00]} 37. Rd6+ {[%emt 0:00:10]} Kf7 {[%emt 0:00:00]} 38. Rd7+ {[%emt 0:01:15]} Ke6 {[%emt 0:00:00]} 39. Rxg7 {[%emt 0:00:45]} d1=Q {[%emt 0:00:00]} 40. Rxh6+ {[%emt 0:00:16]} Kf5 {[%emt 0:00:00]} 41. Rf7+ {[%emt 0:00:46]} Kg5 {[%emt 0:00:00]} 0-1

[Event "FISU WUMSCC Men 2024"]
[Site "Entebbe"]
[Date "2024.06.26"]
[Round "3.8"]
[White "Thilakarathne, G M H"]
[Black "Hemeni, Simamnkele"]
[Result "1-0"]
[ECO "B57"]
[WhiteElo "2356"]
[BlackElo "1866"]
[Annotator "RC"]
[PlyCount "47"]
[EventDate "2024.06.24"]
[EventType "swiss"]
[EventCountry "UGA"]
[SourceTitle "playchess.com"]
[Source "ChessBase"]
[SourceQuality "1"]
[TimeControl "5400+30"]

1. e4 {[%emt 0:00:03]} c5 {[%emt 0:00:03]} 2. Nf3 {[%emt 0:00:05]} d6 {[%emt 0:00:02]} 3. d4 {[%emt 0:00:06]} cxd4 {[%emt 0:00:02]} 4. Nxd4 {[%emt 0:00:07]} Nf6 {[%emt 0:00:06]} 5. Nc3 {[%emt 0:00:05]} Nc6 {[%emt 0:00:04]} 6. Bc4 {[%emt 0:00:04]} Qb6 {[%emt 0:03:42]} 7. Nxc6 {[%emt 0:00:09]} bxc6 {[%emt 0:00:23]} 8. Bb3 {[%emt 0:03:16]} Ba6 {[%emt 0:03:47]} 9. Be3 {[%emt 0:00:57]} Qc7 {[%emt 0:01:00]} 10. f4 {[%emt 0:05:20]} e6 {[%emt 0:05:28]} 11. Qf3 {[%emt 0:03:07]} d5 {[%emt 0:03:54]} 12. O-O-O {[%emt 0:09:01]} Bb4 {[%emt 0:05:31]} 13. exd5 {[%emt 0:05:10]} Bxc3 {[%emt 0:07:04]} 14. d6 Qd7 {[%emt 0:23:41]} 15. bxc3 {[%emt 0:10:07]} O-O {[%emt 0:00:48]} 16. Bc5 {[%emt 0:06:52]} Rfd8 {[%emt 0:05:48]} 17. Rhe1 {[%emt 0:04:10]} Qb7 {[%emt 0:06:09]} 18. f5 {[%emt 0:05:47]} Qb5 {[%emt 0:22:08]} 19. Bd4 {[%emt 0:05:38]} Rxd6 {[%emt 0:05:19]} 20. fxe6 {[%emt 0:02:13]} Rf8 21. Bxf6 {[%emt 0:04:43]} Rxd1+ {[%emt 0:05:05]} 22. Rxd1 {[%emt 0:00:46]} gxf6 {[%emt 0:00:51]} 23. Qxf6 {[%emt 0:00:14]} Qh5 {[%emt 0:00:06]} 24. exf7+ {[%emt 0:00:10]} 1-0